Workbook

Sheet Table S15
C1: LINES | D1: NRQ | E1: NRQ SD | H1: LINES | I1: NRQ | J1: NRQ SD | K1: NRQ (%) | L1: NRQ SD (%)
A2: Alternaria Resistance | B2: A5 | C2: L78-R | D2: 28.53272103 | E2: 4.91448239 | G2: A5 | H2: L78-R | I2: 0.4519594761 | J2: 0.07784560343 | K2: =I2*63.1311490079062 -> 28.53272103 | L2: =J2*63.1311490079062 -> 4.91448239
C3: L54-R | D3: 37.43224578 | E3: 10.79557641 | H3: L54-R | I3: 0.5929283147 | J3: 0.1710023749 | K3: =I3*63.1311490079062 -> 37.43224578 | L3: 10.79557641
C4: L56-S | D4: 63.13114901 | E4: 12.17186855 | H4: L56-S | I4: 1 | J4: 0.192802899 | K4: 63.13114901 | L4: 12.17186855
C5: L76-S | D5: 100 | E5: 43.94054985 | H5: L76-S | I5: 1.584004118 | J5: 0.6960201191 | K5: 100 | L5: 43.94054985
B7: A6 | C7: L54-R | D7: 19.3580995 | E7: 0.7362099073 | G7: A6 | H7: L54-R | I7: 0.2668802994 | J7: 0.01014975259 | K7: =I7*72.5347638674219 -> 19.3580995 | L7: =J7*72.5347638674219 -> 0.7362099073
C8: L78-R | D8: 56.84827345 | E8: 14.20668704 | H8: L78-R | I8: 0.7837383128 | J8: 0.1958603886 | K8: =I8*72.5347638674219 -> 56.84827345 | L8: 14.20668704
C9: L56-S | D9: 72.53476387 | E9: 12.51826878 | H9: L56-S | I9: 1 | J9: 0.1725830224 | K9: 72.53476387 | L9: 12.51826878
C10: L76-S | D10: 100 | E10: 10.29561115 | H10: L76-S | I10: 1.37864928 | J10: 0.141940369 | K10: 100 | L10: 10.29561115
A12: Dickeya Resistance | B12: B4 | C12: L51-S | D12: 46.38155503 | E12: 12.92364152 | G12: B4 | H12: L51-S | I12: 0.6002430169 | J12: 0.1672502263 | K12: =I12*77.2712946765742 -> 46.38155503 | L12: =J12*77.2712946765742 -> 12.92364152
C13: L49-S | D13: 67.48307035 | E13: 19.34381122 | H13: L49-S | I13: 0.8733265132 | J13: 0.2503363157 | K13: =I13*77.2712946765742 -> 67.48307035 | L13: 19.34381122
C14: L60-R | D14: 77.27129468 | E14: 5.073443398 | H14: L60-R | I14: 1 | J14: 0.06565754359 | K14: 77.27129468 | L14: 5.073443398
C15: L50-R | D15: 100 | E15: 22.00079117 | H15: L50-R | I15: 1.29414164 | J15: 0.2847213996 | K15: 100 | L15: 22.00079117
B17: B3 | C17: L51-S | D17: 40.07202644 | E17: 9.99007943 | G17: B3 | H17: L51-S | I17: 0.4007202644 | J17: 0.0999007943 | K17: =I17*100 -> 40.07202644 | L17: 9.99007943
C18: L49-S | D18: 45.94723323 | E18: 10.43963303 | H18: L49-S | I18: 0.4594723323 | J18: 0.1043963303 | K18: 45.94723323 | L18: 10.43963303
C19: L50-R | D19: 61.84834044 | E19: 13.95076786 | H19: L50-R | I19: 0.6184834044 | J19: 0.1395076786 | K19: 61.84834044 | L19: 13.95076786
C20: L60-R | D20: 100 | E20: 12.25410595 | H20: L60-R | I20: 1 | J20: 0.1225410595 | K20: 100 | L20: 12.25410595
A22: Tuber Blight Resistance | B22: T8 | C22: L44-R | D22: 58.22007945 | E22: 8.191500486 | G22: T8 | H22: L44-R | I22: 0.5822007945 | J22: 0.08191500486 | K22: =I22*100 -> 58.22007945 | L22: 8.191500486
C23: L63-R | D23: 64.52794857 | E23: 5.876339515 | H23: L63-R | I23: 0.6452794857 | J23: 0.05876339515 | K23: 64.52794857 | L23: 5.876339515
C24: L76-S | D24: 80.53537401 | E24: 16.52829872 | H24: L76-S | I24: 0.8053537401 | J24: 0.1652829872 | K24: 80.53537401 | L24: 16.52829872
C25: L56-S | D25: 100 | E25: 25.53308261 | H25: L56-S | I25: 1 | J25: 0.2553308261 | K25: 100 | L25: 25.53308261

Sheet Table S14
A1: Identifier | B1: Gene ID | C1: Functional Annotation | D1: Forward primer sequence | E1: Reverse primer sequence | F1: Primer Efficiency (%) | G1: Trait
A2: A5 | B2: PGSC0003DMG400012712 | C2: Glycerol-3-phosphate dehydrogenase | D2: GGGCCTCTTCTAGCTGATAC | E2: CTGGATTGTTCCTTTGCCAC | F2: 100 | G2: Alternaria Resistance
A3: A | B3: PGSC0003DMG404006439 | C3: Aldo/keto reductase | D3: GTTTGCCTGCGGAAAGTCTG | E3: TCCCTGATGCATAAGCCACG | F3: 86 | G3: Alternaria Resistance
A4: B3 | B4: PGSC0003DMG401017405 | C4: Protein GPR89A | D4: TCAGCTGCTCTCCAGTCCT | E4: TTGGGCATTCACTTCCCATGC | F4: 95 | G4: Dickeya Resistance
A5: B4 | B5: PGSC0003DMG400000681 | C5: AP2 domain class transcription factor | D5: ATACTTGCTCAGCTCCGTCT | E5: ACATGTCTCCGATGAGCTAAGG | F5: 89 | G5: Dickeya Resistance
A6: T8 | B6: PGSC0003DMG400032199 | C6: peroxidase | D6: AGCTGCAAATGTTGGTGCTG | E6: ACCTCCAACCAAGGCAACTC | F6: 88 | G6: Tuber Blight Resistance
A10: Reference genes for qRT-PCR
A11: Identifier | B11: Gene ID | C11: Function Annotation | D11: Forward primer sequence | E11: Reverse primer sequence | F11: Primer Efficiency (%)
A12: RefG1 | B12: PGSC0003DMG400014497 | C12: AP-2complex subunit | D12: AGAGAATCGATCAGGGCTGTTGG | E12: AGTTTCCGCAGTCACATGGTCC | F12: 91.80
A13: RefG4 | B13: PGSC0003DMG400026492 | C13: ATP binding Protein | D13: ATGGGAATGGGCTTGGTGTCAG | E13: TGTGAAGGGCTCGTTCCAAGAG | F13: 91.55
A14: Stef1 | B14: PGSC0003DMG400023270 | C14: Elongation factor | D14: GAACTGTCCCTGTTGGTCGT | E14: GGGTCATCCTTGGAGTTTGA | F14: 106
